bitfinex/quotes_ETHUSD_20250724
["timestamp","ask_amount","ask_price","bid_price","bid_amount"]
[1753377627318,0.002,3713.0,3712.9,12.46368615]
[1753377627517,1e-08,3713.0,3712.9,12.61578615]
[1753377627908,1e-08,3713.0,3712.9,19.62178615]
[1753377628112,1e-08,3713.0,3712.9,19.61978615]
[1753377632118,1e-08,3713.0,3712.9,19.61878615]
[1753377632328,1e-08,3713.0,3712.9,15.28778615]
[1753377632490,1e-08,3713.0,3712.9,19.61778615]
[1753377634892,1e-08,3713.0,3712.9,7.12858615]
[1753377635203,1e-08,3713.0,3712.9,10.62908615]
[1753377635585,1e-08,3713.0,3712.9,11.17908615]
[1753377636512,1e-08,3713.0,3712.9,11.63018615]
[1753377638015,1e-08,3713.0,3712.9,6.85008615]
[1753377638219,1e-08,3713.0,3712.9,11.17808615]
[1753377638415,0.42790001,3713.0,3712.9,6.85008615]
[1753377638729,0.88690001,3713.0,3712.9,11.17808615]
[1753377638891,0.88690001,3713.0,3712.9,0.55]
[1753377639088,0.88690001,3713.0,3712.8,0.1344]
[1753377639292,1e-08,3713.0,3712.9,4.328]
[1753377639895,0.88690001,3713.0,3712.9,4.879]
[1753377640089,0.88690001,3713.0,3712.9,0.551]
[1753377640309,0.88690001,3713.0,3712.9,4.879]
[1753377641894,0.88690001,3713.0,3712.9,0.551]
[1753377642103,3.60707471,3713.0,3712.9,4.328]
[1753377642311,4.39657471,3713.0,3712.9,4.328]
[1753377642635,4.39657471,3713.0,3712.9,0.001]
[1753377643116,2.69353014,3712.6,3712.5,0.001]
[1753377643323,6.59363014,3712.6,3712.5,0.001]
[1753377643695,7.48053014,3712.6,3712.5,0.001]
[1753377645732,4.787,3712.6,3712.5,0.001]
[1753377645931,7.48053014,3712.6,3712.5,0.001]
[1753377647844,7.52033014,3712.6,3712.5,0.001]
[1753377648840,7.02153014,3712.6,3712.5,0.001]
[1753377649131,7.52033014,3712.6,3712.5,0.001]
[1753377651342,7.38593014,3712.6,3712.5,0.001]
[1753377653511,0.1344,3712.9,3712.5,0.001]
[1753377653815,1e-08,3713.0,3712.9,3.2433125]
[1753377654010,1e-08,3713.0,3712.9,8.95446259]
[1753377654235,1e-08,3713.0,3712.9,9.38472947]
[1753377655648,1e-08,3713.0,3712.9,4.60352947]
[1753377655872,1e-08,3713.0,3712.9,8.92652947]
[1753377656845,1e-08,3713.0,3712.9,9.38372947]
[1753377657761,1e-08,3713.0,3712.9,9.53582947]
[1753377658365,1e-08,3713.0,3712.9,9.38372947]
[1753377659284,1e-08,3713.0,3712.9,5.21282947]
[1753377659488,0.002,3713.8,3713.7,3.24273231]
[1753377659783,0.002,3713.8,3713.7,9.293565]
[1753377660136,0.002,3713.8,3713.7,4.972565]
[1753377660349,0.002,3713.8,3713.7,9.293565]
[1753377660742,0.002,3713.8,3713.7,9.750765]
[1753377661071,0.002,3713.8,3713.7,5.429765]
[1753377661277,0.002,3713.8,3713.7,9.77669232]
[1753377661577,0.002,3713.8,3713.7,9.749765]
[1753377661872,0.002,3713.8,3713.7,5.429765]
[1753377662072,0.002,3713.8,3713.7,9.77669232]
[1753377662272,0.002,3713.8,3713.7,9.292565]
[1753377662978,0.002,3713.8,3713.7,4.869]
[1753377663275,0.002,3713.8,3713.7,3.24273231]
[1753377663474,0.002,3713.8,3713.7,7.56173231]
[1753377665479,0.002,3713.8,3713.7,4.869]
[1753377665657,0.5008,3713.8,3713.7,4.869]
[1753377665860,0.9363,3713.8,3713.7,7.56173231]
[1753377666057,0.002,3713.8,3713.7,7.56173231]
[1753377666559,0.002,3713.8,3713.7,8.5871915]
[1753377666880,0.002,3713.8,3713.7,9.0443915]
[1753377668281,0.002,3713.8,3713.7,9.7987915]
[1753377668777,0.002,3713.8,3713.7,12.9508915]
[1753377669181,0.002,3713.8,3713.7,8.0225915]
[1753377669381,0.002,3713.8,3713.7,12.3395915]
[1753377669557,0.002,3713.8,3713.7,12.7967915]
[1753377669895,0.002,3713.8,3713.7,12.9488915]
[1753377671247,0.002,3713.8,3713.7,12.7967915]
[1753377671452,0.4375,3713.8,3713.7,4.315]
[1753377671660,0.002,3713.8,3713.7,7.00773231]
[1753377671991,0.002,3713.8,3713.7,7.55773231]
[1753377672192,0.002,3713.8,3713.7,8.01493231]
[1753377672969,0.002,3713.8,3713.7,8.14933231]
[1753377673289,0.002,3713.8,3713.7,12.50283407]
[1753377673594,0.002,3713.8,3713.7,13.46943407]
[1753377677567,0.002,3713.8,3713.7,0.1344]
[1753377677768,0.002,3713.8,3713.7,7.00473231]
[1753377677974,0.002,3713.8,3713.7,18.03540401]
[1753377678595,0.002,3713.8,3713.7,13.72340401]
[1753377678792,0.002,3713.8,3713.7,17.58060401]
[1753377678966,0.002,3713.8,3713.7,19.60794599]
[1753377679360,0.002,3713.8,3713.7,18.84884599]
[1753377679776,0.002,3713.8,3713.7,14.53684599]
[1753377679975,0.9422,3713.8,3713.7,7.55473231]
[1753377680696,0.4813,3713.8,3713.7,7.55373231]
[1753377680907,0.002,3713.8,3713.7,16.82050401]
[1753377681202,0.002,3713.8,3713.7,19.82050401]
[1753377681402,0.002,3713.8,3713.7,22.64802599]
[1753377682504,0.002,3714.5,3714.1,0.55]
[1753377682692,0.002,3714.5,3714.4,15.50899655]
[1753377683004,0.002,3714.6,3714.5,4.07525237]
[1753377683172,0.002,3714.6,3714.5,6.7861029]
[1753377683372,0.002,3714.6,3714.5,6.75918138]
[1753377683569,0.002,3714.8,3714.7,2.69200742]
[1753377683802,1.7511,3715.7,3715.5,3.2414278]
[1753377683803,0.8109,3715.7,3715.5,3.2414278]
[1753377684099,0.8109,3715.7,3715.5,8.14472615]
[1753377684100,0.4813,3715.6,3715.5,8.14472615]
[1753377684307,0.9422,3715.6,3715.5,8.14472615]
[1753377685022,0.9422,3715.6,3715.5,4.309]
[1753377685227,0.9422,3715.6,3715.5,4.859]
[1753377685498,0.9422,3715.6,3715.5,0.55]
[1753377685698,0.9422,3715.6,3715.5,4.859]
[1753377686587,0.9422,3715.6,3714.0,2.6924527]
[1753377686588,2.69173389,3715.1,3714.5,2.68392901]
[1753377686779,0.9402,3715.0,3714.6,4.309]
[1753377686975,0.7666,3715.5,3714.6,4.309]
[1753377686976,0.9402,3714.9,3714.6,4.309]
[1753377687190,0.9402,3715.2,3714.7,11.9856963]
[1753377687391,0.7666,3715.5,3715.2,0.55]
[1753377687597,0.4793,3715.5,3715.4,0.55]
[1753377687898,0.4793,3715.5,3715.4,0.6844]
[1753377688099,0.4793,3715.5,3715.4,3.37590024]
[1753377688589,0.9402,3715.5,3715.4,0.6844]
[1753377688791,0.4609,3715.5,3715.4,0.6844]
[1753377688997,0.9402,3715.5,3715.4,0.6844]
[1753377693090,0.9402,3715.5,3715.4,3.37590024]
[1753377693424,0.9402,3715.5,3715.4,0.6844]
[1753377694691,0.9402,3715.5,3715.4,3.37590024]
[1753377694893,0.002,3715.6,3715.5,4.0728278]
[1753377695192,0.002,3715.6,3715.5,8.85854207]
[1753377695392,0.002,3715.6,3715.5,8.8316278]
[1753377695825,0.002,3716.3,3716.2,3.24092083]
[1753377696025,0.002,3716.3,3716.2,8.00341291]
[1753377696195,0.002,3716.3,3716.2,1.00849208]
[1753377696517,0.9422,3716.3,3716.2,5.31249208]
[1753377697094,0.9422,3716.3,3716.2,8.00341291]
[1753377697493,0.9422,3716.3,3716.2,5.31249208]
[1753377697717,0.9422,3716.3,3716.2,8.00341291]
[1753377697922,0.9422,3716.3,3716.2,5.31249208]
[1753377700198,0.9422,3716.3,3716.2,4.4364]
[1753377700427,0.9422,3716.3,3716.2,0.1344]
[1753377700609,3.63304842,3716.3,3716.2,0.1344]
[1753377700925,3.63304842,3716.3,3716.2,4.4364]
[1753377701647,2.69114783,3715.9,3715.3,5.69155309]
[1753377701803,2.6910859,3716.0,3715.9,0.1344]
[1753377702008,0.9402,3715.8,3715.5,0.55]
[1753377702253,0.9402,3715.8,3715.5,2.6914278]
[1753377702425,2.69100611,3716.1,3715.7,0.6844]
[1753377702631,2.69100611,3716.1,3715.8,4.301]
[1753377702806,2.69107218,3716.0,3715.8,4.301]
[1753377703007,2.69107218,3716.0,3715.9,0.1344]
[1753377703234,0.7548,3716.3,3715.9,0.1344]
[1753377703534,2.69106566,3716.0,3715.9,0.1344]
[1753377703742,2.69106566,3716.0,3715.9,4.4344]
[1753377703902,3.63126566,3716.0,3715.9,4.4344]
[1753377704304,1.693,3716.0,3715.7,4.3]
[1753377704542,0.7528,3716.0,3715.6,4.4344]
[1753377704741,0.7528,3716.0,3715.6,4.3]
[1753377704742,0.9402,3715.9,3715.6,4.3]
[1753377704953,0.9402,3715.8,3715.7,0.55]
[1753377705331,0.9402,3715.8,3715.7,0.6844]
[1753377705638,0.9402,3715.8,3715.7,3.37568293]
[1753377706016,0.9402,3715.8,3715.7,0.6844]
[1753377706554,0.9422,3715.8,3715.7,0.6844]
[1753377706761,0.9422,3715.8,3715.7,0.1344]
[1753377706919,3.66034524,3715.8,3715.7,4.299]
[1753377707956,4.43124524,3715.8,3715.7,4.299]
[1753377708156,1.7131,3715.8,3715.7,4.299]
[1753377708955,1.7106,3715.8,3715.7,4.299]
[1753377709150,1.7106,3715.8,3715.7,4.4334]
[1753377710068,0.002,3715.8,3715.7,7.67468293]
[1753377710477,0.002,3715.8,3715.7,4.9834]
[1753377710644,0.9143,3715.8,3715.7,4.9834]
[1753377711160,0.002,3715.8,3715.7,7.67468293]
[1753377711753,0.4788,3715.8,3715.7,4.9834]
[1753377712059,0.9143,3715.8,3715.7,7.67468293]
[1753377712655,0.9143,3715.8,3715.7,4.9834]
[1753377712859,0.9143,3715.8,3715.7,0.6844]
[1753377713060,3.60555483,3715.8,3715.7,4.297]
[1753377713863,4.37665483,3715.8,3715.7,4.297]
[1753377714956,1.6854,3715.8,3715.7,4.297]
[1753377715339,4.3766105,3715.8,3715.7,4.297]
[1753377716452,1.6854,3715.8,3715.7,4.297]
[1753377716971,4.3766105,3715.8,3715.7,4.297]
[1753377717670,2.6914278,3715.5,3715.4,0.1344]
[1753377717837,0.7777,3715.6,3715.4,4.4304]
[1753377718034,0.9123,3715.5,3715.4,4.4304]
[1753377718851,0.4355,3715.5,3715.4,4.4304]
[1753377719054,0.9123,3715.5,3715.4,4.4304]
[1753377720055,0.9143,3715.8,3715.4,7.12187256]
[1753377720375,0.4768,3715.7,3715.5,0.55]
[1753377720574,0.9123,3715.7,3715.6,0.1344]
[1753377720871,0.002,3715.8,3715.7,0.55]
[1753377721038,0.002,3715.8,3715.7,4.844]
[1753377721242,0.9143,3715.8,3715.7,4.844]
[1753377721650,0.9143,3715.8,3715.7,7.53528293]
[1753377721855,0.9143,3715.8,3715.7,4.844]
[1753377722251,0.9143,3715.8,3715.7,7.53528293]
[1753377722458,0.002,3715.8,3715.7,8.57139396]
[1753377723466,0.002,3715.8,3715.7,9.04589396]
[1753377723778,0.002,3715.8,3715.7,4.27739396]
[1753377723976,0.002,3715.8,3715.7,7.53428293]
[1753377724165,0.002,3715.8,3715.7,8.00878293]
[1753377724363,0.4788,3715.8,3715.7,4.843]
[1753377724565,0.9143,3715.8,3715.7,7.53428293]
[1753377724783,0.9143,3715.8,3715.7,8.57028834]
[1753377724945,0.9143,3715.8,3715.7,5.87900541]
[1753377725145,0.9143,3715.8,3715.7,4.843]
[1753377725443,0.94123474,3715.8,3715.6,0.1344]
[1753377725660,0.002,3715.8,3715.7,4.292]
[1753377726272,0.9143,3715.8,3715.7,4.292]
[1753377726578,2.69128293,3715.7,3715.6,0.1344]
[1753377726881,0.93923474,3715.7,3715.6,4.4264]
[1753377727079,0.9123,3715.7,3715.6,0.1344]
[1753377727378,0.9123,3715.7,3715.2,6.9916028]
[1753377727379,2.69135536,3715.6,3715.5,4.292]
[1753377727564,3.60365536,3715.6,3715.2,0.1344]
[1753377727883,2.69169712,3715.2,3715.0,0.1344]
[1753377728050,0.1344,3715.5,3715.1,4.291]
[1753377728245,2.69150024,3715.4,3715.1,4.291]
[1753377728467,0.1344,3715.5,3715.0,0.1344]
[1753377728745,2.69177357,3715.1,3714.9,4.291]
[1753377728952,0.9123,3715.0,3714.9,4.291]
[1753377729444,3.60409004,3715.0,3714.9,4.291]
[1753377729658,0.9123,3715.0,3714.9,4.291]
[1753377729862,0.7593,3715.4,3714.9,4.291]
[1753377730084,0.4768,3715.3,3714.9,4.291]
[1753377730262,0.4355,3715.2,3715.1,0.1344]
[1753377730680,0.7593,3715.4,3715.1,2.82606521]
[1753377730861,1.2361,3715.4,3715.2,4.291]
[1753377731061,0.9123,3715.4,3715.2,4.291]
[1753377731263,0.4768,3715.3,3715.2,4.291]
[1753377731588,0.9123,3715.3,3715.2,4.291]
[1753377734191,0.9123,3715.3,3715.1,0.1344]
[1753377734410,2.69149356,3715.5,3715.2,4.29]
[1753377735054,0.9123,3715.4,3715.2,4.29]
[1753377735484,3.9178847,3715.7,3715.2,4.29]
[1753377735666,0.8966,3715.6,3715.2,4.29]
[1753377735859,0.7854,3715.7,3715.3,0.55]
[1753377736073,0.7854,3715.7,3715.5,0.1344]
[1753377736074,0.4554,3715.6,3715.5,0.1344]
[1753377736278,0.8966,3715.7,3715.5,4.4234]
[1753377736477,0.4554,3715.7,3715.5,4.4234]
[1753377736673,0.8966,3715.7,3715.5,4.4234]
[1753377736873,0.002,3715.8,3715.6,0.55]
[1753377737070,0.002,3715.8,3715.7,3.24128293]
[1753377737274,0.002,3715.8,3715.7,3.84398293]
[1753377737474,0.002,3715.8,3715.7,3.37568293]
[1753377737925,0.002,3715.8,3715.7,3.84398293]
[1753377738075,0.002,3715.8,3715.7,5.00393038]
[1753377738708,0.002,3715.8,3715.7,4.53563038]
[1753377738907,0.002,3715.8,3715.7,15.1216149]
[1753377739096,0.002,3715.8,3715.7,15.24680208]
[1753377739829,0.002,3715.8,3715.7,19.53380208]
[1753377741413,0.002,3715.8,3715.7,9.64663038]
[1753377741801,0.002,3715.8,3715.7,10.11493038]
[1753377742005,0.002,3715.8,3715.7,10.26703038]
[1753377742413,0.002,3715.8,3715.7,6.20854219]
[1753377742610,0.002,3715.8,3715.7,7.11168293]
[1753377743339,0.002,3715.8,3715.7,4.4204]
[1753377743543,0.002,3715.8,3715.7,4.4194]
[1753377743743,0.8986,3715.8,3715.7,4.4194]
[1753377744297,0.8986,3715.8,3715.7,4.285]
[1753377745746,0.7577,3715.7,3714.8,0.001]
[1753377745950,2.69145551,3715.5,3715.2,0.1344]
[1753377746167,0.8966,3715.4,3715.3,4.284]
[1753377747143,0.8921,3715.7,3715.3,4.284]
[1753377747144,1.3333,3715.7,3715.3,6.97557268]
[1753377747323,0.002,3715.8,3715.3,4.284]
[1753377747524,0.4554,3715.7,3715.6,0.1344]
[1753377747770,0.4554,3715.7,3715.6,7.10975536]
[1753377747924,0.002,3715.8,3715.7,2.69128293]
[1753377751055,0.002,3715.8,3715.7,3.72759575]
[1753377751446,0.002,3715.8,3715.7,3.70068293]
[1753377751829,0.002,3715.8,3715.7,7.52328293]
[1753377752076,0.8986,3715.8,3715.6,0.1344]
[1753377752254,0.002,3715.8,3715.7,4.282]
[1753377752425,0.002,3715.8,3715.7,6.97328293]
[1753377754922,0.002,3715.8,3715.7,8.96268789]
[1753377755124,0.002,3715.8,3715.7,8.50328789]
[1753377756830,0.002,3716.3,3716.2,2.69092083]
[1753377757156,0.002,3716.3,3716.2,16.23769253]
[1753377757367,0.002,3716.3,3716.2,16.37209253]
[1753377757539,0.002,3716.3,3716.2,18.27840219]
[1753377758341,0.002,3716.8,3716.7,3.24055882]
[1753377758543,0.002,3716.8,3716.7,16.8142361]
[1753377758742,0.002,3716.8,3716.7,16.92173052]
[1753377759064,0.002,3716.8,3716.7,18.88296784]
[1753377759859,0.002,3716.8,3716.7,0.1344]
[1753377760048,0.002,3716.8,3716.7,4.4134]
[1753377760049,0.8986,3716.8,3716.7,4.4134]
[1753377760904,0.8986,3716.8,3716.7,7.10395882]
[1753377761211,0.8986,3716.8,3716.7,0.1344]
[1753377761350,0.8986,3716.8,3716.7,4.4124]
[1753377763085,0.8986,3716.8,3716.7,7.65295882]
[1753377763086,0.002,3716.8,3716.7,7.65295882]
[1753377763266,0.002,3716.8,3716.7,9.61399611]
[1753377763651,0.002,3716.8,3716.7,10.14289611]
[1753377763857,0.002,3716.8,3716.7,10.07239611]
[1753377764284,0.002,3716.8,3716.7,0.1344]
[1753377764489,0.8986,3716.8,3716.7,0.1344]
[1753377764673,0.8986,3716.8,3716.7,4.4114]
[1753377764971,0.4574,3716.8,3716.7,4.4114]
[1753377765172,0.8986,3716.8,3716.7,4.4114]
[1753377765999,0.8986,3716.8,3716.7,4.4104]
[1753377767771,0.002,3716.8,3716.7,7.10095882]
[1753377768182,0.002,3716.8,3716.7,8.08011898]
[1753377768406,0.002,3716.8,3716.7,7.10095882]
[1753377769328,0.002,3716.8,3716.7,8.11035882]
[1753377769491,0.002,3716.8,3716.7,8.17985882]
[1753377770509,0.002,3716.8,3716.7,8.11035882]
[1753377770799,0.002,3716.8,3716.7,7.97595882]
[1753377771113,0.002,3716.8,3716.7,12.11211898]
[1753377771813,0.002,3716.8,3716.7,12.04261898]
[1753377772723,0.002,3716.8,3716.7,12.11211898]
[1753377773792,0.002,3716.8,3716.7,12.04261898]
[1753377774191,0.002,3716.8,3716.7,7.76661898]
[1753377774391,0.002,3717.3,3717.2,3.69959692]
[1753377774717,0.002,3717.3,3717.2,8.63748666]
[1753377774914,0.002,3717.3,3717.2,8.6105847]
[1753377775785,0.002,3717.3,3717.2,11.6800847]
[1753377777041,0.002,3717.3,3717.2,11.6105847]
[1753377777958,1.3211,3719.1,3718.0,2.68961807]
[1753377778114,1.2758,3719.1,3719.0,2.68889486]
[1753377778316,0.4488,3719.8,3719.0,4.84788894]
[1753377778518,0.827,3719.7,3719.1,0.55]
[1753377778722,0.827,3719.7,3719.4,2.68857365]
[1753377779045,0.9429,3719.6,3719.5,4.271]
[1753377779220,0.9429,3719.6,3719.5,4.27]
[1753377779657,1.38871593,3719.6,3718.9,0.55]
[1753377779824,0.7808,3719.2,3719.0,4.27]
[1753377780143,3.46955026,3719.2,3719.1,4.27]
[1753377780559,1.7237,3719.2,3719.1,4.27]
[1753377780725,4.58482026,3719.2,3719.1,4.27]
[1753377780915,1.89607,3719.2,3719.1,4.4044]
[1753377781114,4.58482026,3719.2,3719.1,4.4044]
[1753377781754,4.58482026,3719.2,3719.1,4.27]
[1753377781961,2.68908751,3718.8,3718.7,0.1344]
[1753377782176,2.68908751,3718.8,3718.7,4.4034]
[1753377782491,3.63198751,3718.8,3718.7,4.4034]
[1753377782677,3.63198751,3718.8,3718.7,0.1344]
[1753377782986,2.68940783,3718.3,3717.8,6.998]
[1753377783273,0.9429,3718.2,3717.9,4.4034]
[1753377783438,2.68935153,3718.4,3718.1,0.1344]
[1753377783641,0.793,3718.3,3718.2,4.268]
[1753377784151,1.7359,3718.3,3718.2,4.268]
[1753377784525,2.68913891,3718.7,3718.2,4.818]
[1753377784526,1.2871,3718.6,3718.2,4.818]
[1753377784732,0.9429,3718.6,3718.2,4.818]
[1753377784923,0.30677,3719.2,3718.2,4.818]
[1753377784924,0.4941,3719.1,3718.5,0.6844]
[1753377785130,0.4941,3719.1,3719.0,0.1344]
[1753377785456,0.9429,3719.1,3719.0,4.4024]
[1753377786161,3.63172256,3719.1,3719.0,4.4024]
[1753377786325,1.65692748,3719.1,3719.0,0.1344]
[1753377786534,1.65692748,3719.1,3719.0,4.4014]
[1753377786739,0.793,3719.2,3719.0,4.4014]
[1753377786939,0.4941,3719.1,3719.0,4.4014]
[1753377787147,0.9429,3719.1,3719.0,4.4014]
[1753377787459,0.4941,3719.1,3719.0,7.09029486]
[1753377787824,0.4941,3719.1,3719.0,4.4014]
[1753377788362,0.4488,3719.4,3719.0,4.9514]
[1753377788538,0.8097,3719.5,3719.3,0.1344]
[1753377788767,0.9429,3719.4,3719.3,0.1344]
[1753377788941,0.9429,3719.4,3719.3,4.4004]
[1753377789146,0.4941,3719.4,3719.3,4.4004]
[1753377789761,1.11816,3719.4,3719.3,4.4004]
[1753377790331,3.80676568,3719.4,3719.3,4.4004]
[1753377791029,3.80676568,3719.4,3718.5,2.68923519]
[1753377791030,3.83370042,3719.4,3718.5,2.89029777]
[1753377791371,2.68919098,3718.6,3718.0,2.68961569]
[1753377791538,0.02693474,3718.8,3718.5,0.1344]
[1753377791733,0.8229,3718.9,3718.6,4.265]
[1753377792053,0.4941,3719.1,3718.7,7.08844963]
[1753377792255,0.4488,3719.3,3718.9,0.55]
[1753377792445,0.4941,3719.2,3719.0,0.1344]
[1753377792644,0.9429,3719.2,3719.1,4.265]
[1753377792864,1.30605511,3719.2,3719.1,4.3994]
[1753377793250,4.76090537,3719.2,3719.1,4.265]
[1753377795163,2.68895238,3719.0,3718.8,0.1344]
[1753377795369,2.68903947,3718.8,3718.7,4.264]
[1753377795570,2.6892625,3718.5,3717.8,6.998]
[1753377795871,0.51463474,3718.4,3717.9,4.264]
[1753377796041,2.68961807,3718.0,3717.9,4.264]
[1753377796236,3.63441807,3718.0,3717.9,4.3984]
[1753377796466,1.6621387,3718.0,3717.9,4.3984]
[1753377797539,4.35175677,3718.0,3717.9,4.3984]
[1753377797855,4.35175677,3718.0,3716.8,9.30345932]
[1753377797856,1.68907344,3718.0,3717.6,4.264]
[1753377798060,5.68990652,3717.7,3717.6,4.264]
[1753377798249,0.9448,3717.7,3717.6,4.264]
[1753377798451,0.9448,3717.7,3717.6,4.3984]
[1753377798655,1.3102,3718.1,3717.6,4.3984]
[1753377798885,2.68933873,3718.4,3717.6,4.3984]
[1753377798886,0.4877,3718.4,3718.0,0.1344]
[1753377799054,0.66403,3718.3,3718.1,4.263]
[1753377799257,0.4877,3718.2,3718.1,4.263]
[1753377799436,3.66120814,3718.2,3718.1,4.263]
[1753377799641,3.66120814,3718.2,3718.1,4.3974]
[1753377800793,2.68961807,3718.0,3717.9,4.263]
[1753377800995,2.68969041,3717.9,3717.8,4.263]
[1753377801141,3.63449041,3717.9,3717.8,4.263]
[1753377801336,0.72998562,3718.0,3717.8,4.263]
[1753377801637,0.4877,3718.0,3717.8,6.9527504]
[1753377801878,3.17714789,3718.3,3717.9,0.1344]
[1753377802193,0.4877,3718.2,3718.1,0.1344]
[1753377803043,0.9448,3718.2,3718.1,0.1344]
[1753377805293,3.6342734,3718.2,3718.1,0.1344]
[1753377805590,2.68977544,3717.8,3717.6,0.1344]
[1753377805743,2.68977544,3717.8,3717.7,4.261]
[1753377805944,3.63457544,3717.8,3717.7,4.261]
[1753377806141,0.9448,3717.8,3717.7,4.261]
[1753377806368,0.7729,3718.1,3717.7,4.261]
[1753377806568,0.4877,3718.1,3717.7,4.261]
[1753377806769,1.2879,3718.4,3718.0,0.1344]
[1753377807005,0.45686455,3718.3,3718.1,4.261]
[1753377807147,0.94456455,3718.3,3718.1,4.261]
[1753377807346,0.45686455,3718.3,3718.1,4.261]
[1753377807572,0.4877,3718.7,3718.2,2.82382406]
[1753377807779,0.9448,3718.6,3718.2,0.1344]
[1753377807957,0.4877,3718.9,3718.6,0.1344]
[1753377808159,0.4877,3718.8,3718.7,4.3954]
[1753377808845,0.4571,3718.9,3718.7,4.3954]
[1753377809077,0.4877,3718.8,3718.7,4.3954]
[1753377809279,0.9448,3718.8,3718.7,4.3954]
[1753377809440,3.99740931,3718.8,3718.7,0.1344]
[1753377809642,3.48834143,3718.7,3718.6,4.26]
[1753377809846,4.43314143,3718.7,3718.6,4.26]
[1753377810998,1.744,3718.7,3717.4,4.7594]
[1753377811277,2.68940264,3718.3,3717.9,0.1344]
[1753377811476,2.68940264,3718.3,3718.0,4.26]
[1753377811676,0.9448,3718.2,3718.0,4.26]
[1753377811885,0.9448,3718.2,3717.9,0.1344]
[1753377812184,0.9448,3718.1,3718.0,4.259]
[1753377816849,0.002,3719.0,3718.0,4.259]
[1753377817048,0.7736,3719.0,3718.7,0.1344]
[1753377817277,3.46249942,3719.0,3718.7,4.3924]
[1753377817483,0.9448,3718.9,3718.7,4.3924]
[1753377818005,2.68929957,3718.5,3718.4,4.258]
[1753377818508,0.9448,3718.5,3718.4,4.258]
[1753377819202,0.4877,3718.9,3718.4,4.258]
[1753377819400,0.002,3719.0,3718.7,0.1344]
[1753377819568,0.4897,3719.0,3718.7,4.3924]
[1753377819764,0.002,3719.0,3718.9,2.68896716]
[1753377819996,0.002,3719.0,3718.9,5.74665476]
[1753377820205,0.002,3719.0,3718.9,5.78926509]
[1753377821481,0.002,3719.0,3718.9,9.97676509]
[1753377821684,0.002,3719.0,3718.9,8.08976716]
[1753377821904,0.002,3719.0,3718.9,3.83276716]
[1753377822083,0.002,3719.0,3718.9,8.08976716]
[1753377823096,0.002,3719.0,3718.9,8.15926716]
[1753377823994,0.002,3719.0,3718.9,8.08876716]
[1753377825106,0.002,3719.0,3718.9,7.62936716]
[1753377825806,0.4658,3719.0,3718.9,0.1344]
[1753377826007,0.9333,3719.0,3718.9,4.3894]
[1753377826175,0.002,3719.0,3718.9,4.3894]
[1753377826381,0.002,3719.0,3718.9,7.07836716]
[1753377826593,0.002,3719.0,3718.9,7.62836716]
[1753377826988,0.002,3719.0,3718.9,4.9394]
[1753377827222,0.4658,3719.0,3718.9,4.9394]
[1753377827596,0.9333,3719.0,3718.9,4.3894]
[1753377827999,0.002,3719.0,3718.9,7.62736716]
[1753377828205,0.002,3719.0,3718.9,8.79461756]
[1753377828403,0.002,3719.0,3718.9,8.86411756]
[1753377830929,0.002,3719.0,3718.9,11.86411756]
[1753377835305,0.002,3719.0,3718.9,7.61011756]
[1753377835510,0.002,3719.0,3718.9,11.86211756]
[1753377836036,0.002,3719.0,3718.9,16.16211756]
[1753377836337,1e-08,3719.0,3718.9,16.16211756]
[1753377837540,0.002,3719.8,3719.7,3.23838884]
[1753377837840,0.002,3719.8,3719.7,7.65167272]
[1753377837999,0.002,3719.8,3719.7,7.62478884]
[1753377838361,0.002,3719.8,3719.7,10.69428884]
[1753377838646,0.779,3721.1,3720.8,2.68758538]
[1753377838845,0.4675,3721.0,3720.3,0.02687955]
[1753377839133,0.9313,3721.0,3720.9,0.1344]
[1753377839333,0.9313,3721.0,3720.9,4.3854]
[1753377840321,0.95823474,3721.0,3720.9,4.251]
[1753377840911,0.9313,3721.0,3720.9,4.251]
[1753377841137,3.46639621,3721.1,3720.9,4.251]
[1753377841304,0.9313,3721.0,3720.9,4.251]
[1753377842138,0.779,3721.1,3720.9,4.251]
[1753377842336,2.68675864,3722.0,3720.9,4.251]
[1753377842337,0.9313,3721.0,3720.9,4.251]
[1753377842700,0.9313,3721.0,3720.9,4.3834]
[1753377843857,0.4638,3721.0,3720.9,4.3834]
[1753377844003,0.4675,3721.3,3721.0,2.68742947]
[1753377844004,0.4638,3721.2,3721.0,2.68742947]
[1753377844208,0.4638,3721.1,3721.0,2.68742947]
[1753377844408,0.4638,3721.9,3721.1,0.1344]
[1753377844637,0.4638,3721.9,3721.8,2.68687194]
[1753377844943,1.2259,3722.2,3721.8,4.3834]
[1753377845131,0.7621,3722.2,3721.9,2.68674628]
[1753377845327,0.7621,3722.2,3722.1,0.1344]
[1753377845531,3.4486832,3722.2,3722.1,0.1344]
[1753377845833,2.30690893,3722.2,3722.1,4.248]
[1753377846028,5.12789213,3722.2,3722.1,4.248]
[1753377846348,2.30690893,3722.2,3722.1,4.248]
[1753377846511,4.99349213,3722.2,3722.1,4.248]
[1753377847011,2.30690893,3722.2,3722.1,4.248]
[1753377847434,4.99349213,3722.2,3722.1,4.248]
[1753377847744,2.30690893,3722.2,3722.1,4.248]
[1753377848046,5.02042687,3722.2,3722.1,4.248]
[1753377848208,5.19562687,3722.2,3722.1,4.248]
[1753377848412,5.16869213,3722.2,3722.1,4.248]
[1753377848959,1.7342,3722.2,3722.1,4.248]